bitfinex/quotes_ETHUSD_20220227
["timestamp","ask_amount","ask_price","bid_price","bid_amount"]
[1645995874316,1.0,2622.2,2621.7,1.08865417]
[1645995875519,1.0,2622.6,2621.7,1.08865417]
[1645995875520,1.0,2622.6,2621.8,3.5]
[1645995875721,1.0,2623.0,2621.9,0.378]
[1645995875931,1.0,2623.4,2622.8,1.12190418]
[1645995876325,1.0,2623.5,2622.8,1.12190418]
[1645995876726,2.0,2623.5,2622.8,1.12190418]
[1645995876926,2.0,2623.5,2622.8,1.58490418]
[1645995876927,1.0,2623.5,2622.8,1.58490418]
[1645995877129,1.0,2623.5,2623.3,1.33913671]
[1645995877328,0.3809,2624.6,2623.4,12.123]
[1645995877526,17.18770761,2625.7,2623.4,12.123]
[1645995877527,1.0,2625.0,2623.4,12.123]
[1645995877727,1.0,2624.6,2623.4,1.463]
[1645995878185,1.0,2624.6,2623.0,6.0485]
[1645995878186,13.0,2624.5,2622.3,3.5]
[1645995878386,13.0,2624.5,2621.8,0.463]
[1645995878387,5.0,2623.4,2621.8,0.463]
[1645995878588,0.01265721,2622.8,2621.5,0.00096]
[1645995878786,3.5,2623.3,2621.8,0.25]
[1645995878787,5.0,2622.7,2621.8,0.25]
[1645995878985,1.0,2622.1,2621.2,0.00096]
[1645995879185,1.05465914,2621.6,2621.2,0.00096]
[1645995879385,5.0,2621.8,2619.5,16.9218]
[1645995879386,3.6525,2621.7,2620.7,0.00096]
[1645995879584,3.6525,2621.7,2620.5,0.25]
[1645995879585,1.0,2621.3,2620.5,0.25]
[1645995879791,1.0,2621.3,2620.2,0.15346]
[1645995879792,1.0,2621.3,2620.6,0.00096]
[1645995879986,1.0,2620.8,2620.3,0.00096]
[1645995880185,2.0,2621.6,2620.4,12.038]
[1645995880386,1.42700589,2621.5,2620.5,0.46396]
[1645995880589,1.42700589,2621.5,2619.9,0.00096]
[1645995880590,4.92700589,2621.5,2619.9,0.00096]
[1645995880793,5.0,2621.3,2619.9,0.00096]
[1645995880989,1.0,2620.6,2619.9,0.00096]
[1645995881190,1.0,2620.7,2619.9,0.00096]
[1645995881387,1.1977588,2620.5,2619.9,0.00096]
[1645995881634,2.1977588,2620.5,2619.9,0.00096]
[1645995881824,1.0,2620.1,2619.9,0.00096]
[1645995882026,1.0,2620.1,2619.7,0.1526]
[1645995882227,3.5,2620.4,2619.1,0.25096]
[1645995882431,5.0,2619.7,2618.7,0.0189787]
[1645995882633,5.0,2619.7,2618.3,0.0170234]
[1645995882634,5.0,2619.2,2618.5,0.097495]
[1645995882828,1.0,2618.8,2618.5,0.097495]
[1645995883026,1.0,2618.8,2618.3,2.34e-05]
[1645995883330,0.01224135,2619.2,2616.5,0.0193337]
[1645995883331,1.0,2618.6,2616.5,0.0193337]
[1645995883529,1.0,2618.4,2616.5,0.0193337]
[1645995883731,1.0,2617.2,2616.6,0.2]
[1645995883931,1.0,2617.2,2616.5,0.0193337]
[1645995884128,1.0,2616.6,2616.5,0.0193337]
[1645995884530,3.5,2618.2,2615.4,0.01233407]
[1645995884531,1.0,2616.7,2615.4,0.01233407]
[1645995884727,1.0,2616.6,2615.5,0.413]
[1645995884928,1.0,2616.6,2615.5,0.463]
[1645995885127,1.0,2616.5,2615.2,0.01207892]
[1645995885363,0.463,2617.4,2615.6,1.3706413]
[1645995885364,1.0,2616.3,2615.6,1.3706413]
[1645995885563,1.0,2616.3,2614.9,0.00096]
[1645995885762,1.0,2615.7,2614.8,0.0191597]
[1645995885964,1.0,2615.7,2613.6,3.5184974]
[1645995885965,18.0,2615.5,2614.5,0.25]
[1645995886269,18.0,2615.5,2613.8,7.024e-05]
[1645995886270,1.0,2615.0,2613.8,7.024e-05]
[1645995886466,1.0,2614.8,2613.6,3.5184974]
[1645995886665,5.0,2615.2,2613.6,3.5184974]
[1645995886666,1.0,2613.7,2613.6,3.5184974]
[1645995886864,1.0,2613.7,2613.6,3.4684974]
[1645995887065,2.0,2613.7,2613.6,3.51340286]
[1645995887269,2.0,2613.7,2613.3,0.25]
[1645995887270,1.0,2613.7,2613.3,0.25]
[1645995887465,1.0,2613.7,2613.1,0.0144766]
[1645995887668,0.37884,2615.3,2613.1,0.0144766]
[1645995887867,0.60119997,2615.4,2613.3,0.463]
[1645995887868,0.153,2615.2,2613.3,0.463]
[1645995888069,0.13819997,2615.4,2613.3,0.463]
[1645995888469,0.13819997,2615.4,2613.4,5.25]
[1645995888667,0.13819997,2615.4,2613.5,3.963]
[1645995888873,0.3815,2616.0,2614.1,1.378]
[1645995889124,0.463,2617.3,2613.6,1.20926456]
[1645995889125,1.0,2615.7,2614.5,0.25]
[1645995889322,1.0,2616.5,2614.9,0.378]
[1645995889523,0.3815,2617.7,2615.2,0.378]
[1645995889524,1.0,2616.9,2615.2,0.378]
[1645995889725,1.0,2616.9,2615.1,11.66]
[1645995889726,1.0,2616.9,2615.4,11.66]
[1645995889933,0.0124968,2615.9,2614.2,3.10502165]
[1645995890126,0.0124968,2615.9,2613.2,0.0170546]
[1645995890127,0.01250213,2614.7,2613.2,0.0170546]
[1645995890326,0.01250213,2614.7,2612.5,11.66]
[1645995890526,0.01250213,2614.7,2611.9,0.5057]
[1645995890527,0.01239672,2614.3,2611.6,1.0]
[1645995890726,0.01239672,2614.3,2611.3,8.8587]
[1645995890727,0.01239672,2614.3,2612.9,0.25]
[1645995890926,1.0,2612.8,2611.9,0.463]
[1645995891125,0.01212724,2613.7,2611.9,0.463]
[1645995891126,1.0,2613.0,2612.0,1.37860702]
[1645995891534,11.80562057,2614.2,2612.0,1.37860702]
[1645995891535,1.0,2612.2,2612.0,1.37860702]
[1645995891727,0.3823,2613.4,2612.0,1.37860702]
[1645995891928,0.13819997,2614.6,2612.1,0.463]
[1645995891929,1.0,2613.7,2612.1,0.463]
[1645995892129,1.0,2613.7,2612.1,3.963]
[1645995892130,1.0,2612.8,2612.1,3.963]
[1645995892426,1.0,2612.8,2612.1,0.463]
[1645995892629,0.13819997,2614.6,2612.3,12.5]
[1645995892867,0.13819997,2614.6,2611.1,0.0126199]
[1645995892868,5.0,2613.9,2611.1,0.0126199]
[1645995893070,1.0,2613.0,2611.1,0.0126199]
[1645995893275,3.5,2612.9,2611.5,0.25]
[1645995893472,1.0,2612.3,2611.6,0.00096]
[1645995893668,0.01241952,2612.4,2611.6,0.00096]
[1645995893874,0.1531,2613.2,2611.1,0.25]
[1645995894073,0.9,2611.7,2611.2,0.4832937]
[1645995894269,0.9,2611.4,2611.3,0.00096]
[1645995894468,0.9,2611.4,2611.3,1.55454505]
[1645995894769,0.1531,2613.6,2611.3,5.8661]
[1645995894973,0.1001,2611.8,2611.3,0.713]
[1645995895170,0.1001,2612.2,2611.4,0.00096]
[1645995895372,0.01226542,2613.7,2611.8,5.0]
[1645995895576,1.05803118,2613.8,2612.6,1.19223009]
[1645995895779,0.899,2612.9,2612.3,0.25]
[1645995895975,3.653,2613.7,2612.3,0.25]
[1645995895976,0.01261905,2613.3,2612.3,0.25]
[1645995896175,0.01261905,2613.3,2611.6,0.00096]
[1645995896375,0.153,2613.7,2611.7,0.463]
[1645995896621,0.01252166,2614.1,2611.8,0.153]
[1645995896622,0.16552166,2614.1,2611.8,0.153]
[1645995896818,1.0,2612.9,2612.1,0.25]
[1645995897018,1.0,2612.9,2611.2,0.0193337]
[1645995897019,1.0,2612.9,2612.2,0.1531]
[1645995897219,0.01252166,2614.1,2612.2,0.1531]
[1645995897220,1.56926222,2613.0,2612.2,0.1531]
[1645995897421,1.56926222,2612.3,2611.5,0.1531]
[1645995897618,1.0,2612.7,2611.2,0.0193337]
[1645995897824,1.0,2612.2,2611.2,0.0193337]
[1645995898020,1.0,2611.5,2611.2,0.0193337]
[1645995898424,1.0,2611.3,2611.2,0.0193337]
[1645995898820,0.3823,2612.7,2611.2,0.0193337]
[1645995898821,0.1531,2612.6,2611.2,0.0193337]
[1645995899022,1.5815752,2612.8,2611.2,0.0193337]
[1645995899023,1.56926222,2612.8,2611.3,0.1531]
[1645995899328,0.1531,2613.4,2611.5,5.0]
[1645995899329,1.56926222,2613.0,2611.5,5.0]
[1645995899523,0.3823,2614.1,2611.6,0.1531]
[1645995899524,1.56926222,2612.8,2611.6,0.1531]
[1645995899725,1.0,2612.7,2611.6,0.1531]
[1645995899925,1.0,2612.7,2611.3,1.28737057]
[1645995899926,1.0,2612.7,2611.4,3.5]
[1645995900126,1.0,2612.7,2611.7,0.463]
[1645995900365,1.0,2613.0,2611.8,1.14477745]
[1645995900567,1.0,2613.0,2611.9,0.61706]
[1645995900969,1.0,2613.0,2611.9,0.46396]
[1645995901370,1.0,2613.0,2612.0,0.1531]
[1645995901567,1.0,2613.2,2612.1,0.46396]
[1645995901770,1.0,2613.2,2612.2,0.00096]
[1645995901974,1.0,2613.0,2612.3,0.463]
[1645995902375,1.0,2613.2,2612.4,1.30151961]
[1645995902576,1.0,2613.3,2612.5,0.46396]
[1645995902776,1.0,2613.3,2612.6,0.00096]
[1645995902979,1.56926222,2613.1,2612.6,0.00096]
[1645995903176,1.0,2613.4,2612.4,1.30247961]
[1645995903177,2.56926222,2613.4,2612.4,1.30247961]
[1645995903376,1.0,2613.1,2612.4,1.30247961]
[1645995903576,1.0,2613.2,2612.5,0.463]
[1645995903778,1.56926222,2612.7,2612.6,0.00096]
[1645995903981,2.56926222,2612.8,2612.3,0.00096]
[1645995904217,13.0,2612.3,2611.2,0.0193337]
[1645995904418,1.56926222,2611.3,2611.2,0.0193337]
[1645995904623,0.01277279,2611.8,2611.2,0.0193337]
[1645995904820,1.56926222,2611.9,2611.4,1.32393094]
[1645995905023,1.56926222,2611.9,2611.2,0.0193337]
[1645995905024,1.56926222,2611.8,2611.2,0.0193337]
[1645995905219,1.0,2611.3,2611.2,0.0193337]
[1645995905419,1.56926222,2611.8,2611.2,0.0193337]
[1645995905622,0.00083251,2613.0,2611.3,7.5]
[1645995905823,0.00083251,2613.0,2611.3,0.5311]
[1645995905824,0.1531,2612.8,2611.3,0.5311]
[1645995906020,0.00083251,2613.0,2611.5,0.378]
[1645995906220,1.5,2612.9,2611.6,0.1531]
[1645995906421,1.5,2612.9,2611.5,0.378]
[1645995906621,1.0,2612.4,2611.5,0.378]
[1645995906919,0.5,2612.9,2611.4,13.24778073]
[1645995906920,1.5,2612.9,2611.7,0.378]
[1645995907124,1.5,2612.9,2611.9,0.378]
[1645995907125,0.5,2612.9,2611.9,0.378]
[1645995907421,0.5,2612.9,2612.0,0.463]
[1645995907619,0.00083251,2613.0,2612.1,0.463]
[1645995907864,0.00083251,2613.0,2612.1,0.46396]
[1645995908064,0.00083251,2613.0,2612.2,0.00096]
[1645995908263,0.00083251,2613.0,2612.3,1.5526624]
[1645995908464,1.00083251,2613.0,2612.3,1.5536224]
[1645995908862,0.00083251,2613.0,2612.3,1.5536224]
[1645995909063,1.56926222,2612.4,2612.3,0.46396]
[1645995909270,1.56926222,2612.4,2611.7,0.25]
[1645995909271,1.58198627,2612.4,2611.7,0.25]
[1645995909467,0.01272405,2612.4,2611.7,0.25]
[1645995909670,1.01272405,2612.4,2611.7,0.25]
[1645995909869,1.0,2611.8,2611.3,0.463]
[1645995910069,1.0,2611.8,2611.4,1.30341872]
[1645995910471,1.0,2611.7,2611.4,1.76641872]
[1645995910671,1.1531,2612.8,2611.4,1.76641872]
[1645995910672,0.1531,2612.6,2611.4,1.76641872]
[1645995910871,0.1531,2612.6,2611.5,0.1531]
[1645995911070,1.0,2612.3,2611.6,0.463]
[1645995911472,0.82355956,2612.9,2611.7,3.6531]
[1645995911720,0.13819997,2613.7,2611.9,0.378]
[1645995911921,0.071,2613.1,2612.0,0.866]
[1645995912121,1.56926222,2612.6,2612.0,0.25]
[1645995912330,0.01257503,2612.8,2612.0,0.25]
[1645995912521,2.56926222,2612.1,2612.0,6e-05]
[1645995912722,7.0,2612.0,2611.2,0.2693337]
[1645995912918,1.56926222,2611.4,2611.2,0.2693337]
[1645995913120,1.0,2611.3,2610.4,0.25]
[1645995913318,1.0,2611.3,2610.1,0.1532]
[1645995913517,0.993,2611.2,2610.1,0.6162]
[1645995913717,0.993,2611.0,2610.1,0.6162]
[1645995914120,1.56926222,2611.5,2610.1,0.6162]
[1645995914322,1.0,2611.1,2610.1,0.6162]
[1645995914523,1.0,2611.1,2611.0,1.30831797]
[1645995914723,1.0,2611.2,2611.0,1.30831797]
[1645995915659,1.0,2611.3,2611.0,1.30831797]
[1645995915864,1.56926222,2611.5,2611.0,1.30831797]
[1645995915865,1.0,2611.2,2611.0,1.30831797]
[1645995916064,1.0,2611.2,2610.4,0.463]
[1645995916271,0.00081258,2611.7,2610.0,0.001]
[1645995916272,1.56926222,2610.5,2610.0,0.001]
[1645995916468,0.01204638,2611.0,2609.3,0.01661524]
[1645995916469,1.56926222,2610.1,2609.3,0.01661524]
[1645995916664,1.58131613,2609.6,2609.3,0.01661524]
[1645995916868,1.56926222,2609.4,2609.3,0.01661524]
[1645995917066,1.56926222,2609.4,2609.1,8e-08]
[1645995917067,1.20709657,2609.2,2609.1,8e-08]
[1645995917272,1.20709657,2609.2,2606.8,0.78232275]
[1645995917273,0.00575,2608.5,2606.8,0.78232275]
[1645995917469,0.00575,2608.5,2604.1,0.01393108]
[1645995917470,5.0,2606.9,2604.2,42.61826753]
[1645995917674,10.0,2607.1,2604.2,10.78167758]
[1645995917675,5.0,2606.0,2604.2,10.78167758]
[1645995917870,5.0,2606.0,2604.2,9.84212623]
[1645995917871,3.49231157,2605.9,2604.2,9.84212623]
[1645995918069,3.49231157,2605.9,2604.2,6.62572623]
[1645995918070,5.0,2605.4,2604.2,6.62572623]
[1645995918268,18.0,2604.2,2603.2,1.2106376]
[1645995918468,2.30955971,2604.3,2603.2,1.2106376]
[1645995918469,1.51926222,2603.7,2603.5,2.61e-05]
[1645995918670,7.68885026,2603.6,2603.5,2.61e-05]
[1645995918873,15.5,2603.5,2602.9,0.25]
[1645995919123,15.5,2603.5,2602.1,0.01150899]
[1645995919124,1.48197513,2603.0,2602.7,6.18e-05]
[1645995919327,1.46926222,2602.8,2602.7,6.18e-05]
[1645995919535,18.51046,2602.6,2601.1,3.3480563]
[1645995919724,0.01246462,2602.1,2600.5,0.03232809]
[1645995919930,1.0,2601.2,2600.5,0.03232809]
[1645995920132,11.89062057,2602.0,2600.5,0.03232809]
[1645995920133,11.42762057,2602.0,2600.5,0.03232809]
[1645995920333,1.46926222,2602.0,2600.5,0.03232809]
[1645995920537,0.01246462,2602.1,2601.1,0.00096]
[1645995920538,1.46926222,2602.1,2601.1,0.00096]
[1645995920728,4.5,2602.4,2600.0,4.665288]
[1645995920729,1.0,2601.6,2600.0,4.665288]
[1645995920930,1.0,2601.2,2600.0,1.10024207]
[1645995921133,1.0,2601.2,2600.1,0.463]
[1645995921330,0.01265427,2602.1,2600.0,0.85024207]
[1645995921529,1.0,2603.1,2600.2,3.53073778]
[1645995921730,7.6759,2602.5,2601.0,3.53073778]
[1645995921929,0.3828,2603.3,2601.1,0.463]
[1645995922130,1.46926222,2603.4,2601.3,5.782]
[1645995922328,1.46926222,2604.0,2602.2,1.0]
[1645995922531,1.0,2603.6,2603.2,1.40270621]
[1645995922732,1.0,2603.6,2602.4,5.782]
[1645995922733,1.46926222,2604.5,2603.3,0.463]
[1645995922976,1.46926222,2604.5,2602.4,5.782]
[1645995922977,1.46926222,2604.5,2603.5,3.53073778]
[1645995923169,0.21471147,2606.2,2604.4,3.53073778]
[1645995923371,3.5,2606.0,2604.5,0.463]
[1645995923570,1.0,2605.6,2604.6,0.463]
[1645995923772,1.0,2605.6,2605.4,1.19341368]
[1645995923970,1.0,2605.6,2603.8,0.01250515]
[1645995923971,1.0,2605.0,2604.3,5.782]
[1645995924171,1.0,2605.0,2603.8,0.25]
[1645995924373,1.0,2605.6,2603.6,3.53073778]
[1645995924374,1.0,2605.5,2603.6,3.53073778]
[1645995924572,1.0,2605.5,2601.7,5.5183]
[1645995924573,1.0,2604.7,2603.7,0.00096]
[1645995924771,1.0,2604.7,2603.9,5.782]
[1645995924971,0.0001,2605.4,2604.0,0.463]
[1645995925174,1.46926222,2605.8,2604.0,0.463]
[1645995925175,0.0001,2604.9,2604.0,0.463]
[1645995925372,0.0001,2604.9,2604.1,0.00096]
[1645995925576,3.51208633,2605.7,2604.1,0.00096]
[1645995925577,1.46926222,2604.8,2604.2,0.463]
[1645995925773,1.0,2605.5,2604.2,0.463]
[1645995925972,3.5,2606.1,2604.4,18.0]
[1645995926173,0.38232,2607.8,2604.7,3.53073778]
[1645995926174,2.4988,2606.5,2604.7,3.53073778]
[1645995926374,1.46926222,2606.2,2605.5,5.782]
[1645995926624,0.55,2605.9,2605.6,0.46396]
[1645995926827,0.55,2605.9,2605.7,0.463]
[1645995927027,0.01227995,2606.2,2605.6,0.463]
[1645995927225,1.0,2605.8,2605.7,0.00096]
[1645995927427,1.0,2605.7,2605.3,0.25]
[1645995927626,1.0,2605.7,2605.4,0.46396]
[1645995927826,2.0,2605.8,2605.5,0.463]
[1645995928026,2.0,2605.8,2604.3,0.00096]
[1645995928027,0.9,2605.8,2605.6,0.463]
[1645995928234,1.46926222,2606.7,2605.7,0.463]
[1645995928530,0.9,2607.2,2605.9,3.53073778]
[1645995928731,0.005,2606.8,2606.0,0.463]
[1645995928931,1.46926222,2606.7,2606.0,0.463]
[1645995929129,0.005,2606.5,2606.0,0.463]
[1645995929331,0.005,2606.5,2605.9,0.00096]
[1645995929332,1.46926222,2606.2,2605.9,0.00096]
[1645995929530,1.46926222,2606.2,2605.4,0.25]
[1645995929531,1.46926222,2606.2,2605.7,0.00096]
[1645995929730,1.0,2606.1,2605.4,0.25096]
[1645995929930,1.0,2605.8,2605.4,0.25096]
[1645995930130,1.0,2605.8,2605.2,0.00096]
[1645995930378,1.0,2605.6,2605.5,1.28451236]
[1645995930581,0.01286379,2607.0,2605.5,1.28451236]
[1645995930582,0.9,2606.4,2605.6,11.0]
[1645995930790,5.51046,2608.2,2606.0,5.0]
[1645995930791,0.1534,2607.6,2606.0,5.0]
[1645995930982,0.5,2608.2,2606.1,0.463]
[1645995931183,0.00575,2608.5,2606.2,0.25]
[1645995931381,0.05,2607.4,2606.3,0.463]
[1645995931582,0.00575,2608.5,2606.7,5.0]
[1645995931786,0.00575,2608.5,2606.8,0.46396]
[1645995931787,3.50575,2608.5,2606.8,0.46396]
[1645995931985,1.0,2607.7,2606.8,0.463]
[1645995932182,1.0,2607.2,2606.9,0.00096]
[1645995932384,1.0,2607.2,2606.5,0.00096]
[1645995932584,1.0,2607.5,2606.6,5.0]
[1645995932783,0.3838,2608.4,2606.9,12.038]
[1645995932986,0.00575,2608.5,2607.3,5.0]
[1645995933187,5e-05,2608.5,2607.7,11.66]
[1645995933392,5e-05,2608.5,2607.9,5.0]
[1645995933784,5e-05,2608.5,2608.4,1.30067242]
[1645995933985,5e-05,2608.5,2608.4,0.463]
[1645995935025,5e-05,2608.5,2608.4,1.6380832]
[1645995935420,5e-05,2608.5,2608.4,1.7913832]
[1645995935619,5e-05,2608.5,2608.4,1.6380832]
[1645995935820,5e-05,2608.5,2608.4,0.463]
[1645995936825,5e-05,2608.5,2608.4,1.63439114]
[1645995937226,5e-05,2608.5,2608.4,1.78759114]
[1645995937425,5e-05,2608.5,2608.4,0.07701033]
[1645995937723,0.1532,2610.6,2608.5,18.0]
[1645995937724,1.0,2610.0,2608.5,18.0]
[1645995937992,1.0,2610.0,2608.9,1.08864066]
[1645995938178,0.1532,2610.8,2609.0,0.6162]
[1645995938179,1.0,2610.4,2609.0,0.6162]
[1645995938383,1.0,2610.4,2609.7,1.5]
[1645995938589,0.1532,2610.8,2609.8,0.463]
[1645995938788,0.3838,2611.2,2609.8,0.463]
[1645995938989,1.0,2610.8,2609.9,3.50096]
[1645995939183,0.3838,2611.2,2609.9,3.50096]
[1645995939184,0.3838,2611.2,2610.0,0.6162]
[1645995939384,0.3838,2611.2,2610.1,1.275406]
[1645995939585,0.005,2611.3,2610.2,1.46396]
[1645995939786,0.005,2611.8,2611.0,1.0]
[1645995939986,1.56361564,2610.6,2610.3,0.1532]
[1645995940187,0.31361564,2610.6,2608.8,6.9161]
[1645995940386,0.31361564,2610.6,2608.8,7.1661]
[1645995940585,0.31361564,2610.6,2609.5,1.0]
[1645995940586,1.31361564,2610.6,2609.5,1.0]
[1645995940787,1.0,2610.3,2609.5,1.0]
[1645995940987,1.0,2610.3,2609.6,0.463]
[1645995941389,0.31361564,2610.6,2609.6,0.463]
[1645995941390,1.0,2610.2,2609.6,0.463]
[1645995941612,1.0,2609.9,2609.6,0.463]
[1645995942016,1.0,2609.8,2609.6,0.463]
[1645995942217,1.0,2609.9,2609.7,1.24677113]
[1645995942418,1.0,2609.9,2609.6,0.463]
[1645995942718,0.31361564,2610.6,2609.6,0.463]
[1645995942719,1.0,2609.8,2609.6,0.463]
[1645995942917,1.0,2609.7,2609.6,0.463]
[1645995943520,1.0,2610.4,2609.6,0.463]
[1645995943723,0.1532,2610.5,2609.6,0.463]
[1645995943724,1.0,2610.3,2609.6,0.463]
[1645995943919,1.0,2610.3,2609.6,0.46396]
[1645995944119,1.31361564,2610.6,2609.6,0.46396]
[1645995944323,0.31530717,2610.6,2610.1,1.0]
[1645995944523,0.31530717,2610.6,2610.2,1.69924842]
[1645995944524,7.17e-06,2610.6,2610.2,1.69924842]
[1645995944821,7.17e-06,2610.6,2610.2,0.6162]
[1645995945021,7.17e-06,2610.6,2610.2,0.61716]
[1645995945223,7.17e-06,2610.6,2610.3,0.00096]
[1645995945492,7.17e-06,2610.6,2610.4,0.6162]
[1645995945895,7.17e-06,2610.6,2610.4,0.463]
[1645995946098,7.17e-06,2610.6,2609.3,0.19849953]
[1645995946099,0.93621983,2610.3,2609.3,0.19849953]
[1645995946307,0.01280417,2609.4,2606.6,5.8483]
[1645995946500,0.0122328,2609.0,2606.9,8.1314]
[1645995946697,0.0122328,2609.0,2607.2,0.25]
[1645995946698,0.1532,2608.9,2607.2,0.25]
[1645995946901,1.43965091,2608.0,2607.2,0.25]
[1645995947102,1.0,2607.9,2607.2,0.25]
[1645995947500,0.5312,2608.9,2607.0,1.10450732]
[1645995947501,1.0,2607.5,2607.1,3.5]
[1645995947700,2.0,2607.9,2607.0,1.72090732]
[1645995948100,1.0,2607.9,2607.0,0.6164]
[1645995948500,1.0,2607.9,2607.1,0.1534]
[1645995948702,1.0,2607.9,2607.2,0.463]
[1645995949119,1.0,2608.3,2608.0,1.32588312]
[1645995949319,0.1534,2609.3,2608.0,1.32588312]
[1645995949320,1.0,2608.2,2608.0,1.32588312]
[1645995949525,1.0,2608.2,2607.3,0.15426]
[1645995949718,0.1534,2609.3,2607.8,1.0]
[1645995949719,1.0,2608.3,2607.8,1.0]
[1645995949921,1.0,2608.3,2607.9,0.00096]
[1645995950125,0.1534,2609.3,2607.4,0.00096]
[1645995950126,1.0,2608.2,2607.4,0.00096]
[1645995950325,1.0,2608.2,2607.4,11.66096]
[1645995950527,1.0,2608.6,2608.1,12.85422225]
[1645995950732,1.0,2608.6,2608.1,1.19422225]
[1645995950927,0.1532,2610.1,2608.2,0.463]
[1645995951128,1.0,2609.2,2608.2,0.61716]
[1645995951328,1.0,2609.2,2608.1,1.19422225]
[1645995951532,1.0,2609.2,2608.2,0.463]
[1645995951729,0.1532,2609.8,2608.2,0.463]
[1645995951730,1.0,2609.1,2608.2,0.463]
[1645995951929,1.0,2609.0,2608.2,0.463]
[1645995952131,1.0,2609.0,2605.5,12.21856579]
[1645995952132,2.94465232,2605.9,2605.5,12.21856579]
[1645995952330,2.94465232,2605.9,2603.5,7.52551123]
[1645995952331,292.8951284,2605.7,2603.5,7.52551123]
[1645995952533,0.0124942,2608.0,2606.5,11.41]
[1645995952734,10.0,2608.9,2607.7,9.80297521]
[1645995952970,10.0,2608.9,2607.8,0.213]
[1645995953172,2.48766848,2608.8,2605.9,2.40494718]
[1645995953374,2.48766848,2608.8,2604.8,1.48269493]
[1645995953572,2.48766848,2608.8,2603.7,3.6603328]
[1645995953573,0.25,2607.9,2606.1,12.038]
[1645995953772,2.48766848,2608.8,2608.2,7.21795566]
[1645995953976,0.25,2609.4,2608.4,0.01230805]
[1645995954180,10.00000717,2610.6,2607.2,0.1704]
[1645995954181,7.17e-06,2610.6,2607.2,0.1704]
[1645995954377,7.17e-06,2610.6,2606.2,37.62731769]
[1645995954378,0.3673969,2609.4,2608.8,18.0]
[1645995954578,0.25,2609.3,2608.9,11.788]
[1645995954782,0.25,2609.3,2608.9,1.57328178]
[1645995954980,0.25,2609.3,2608.8,18.00096]
[1645995954981,2.84778822,2609.3,2608.8,17.25]
[1645995955183,0.61777389,2609.1,2608.8,2.32328178]
[1645995955381,0.52567389,2609.1,2608.8,2.32328178]
[1645995955583,0.96259413,2609.1,2608.9,0.378]
[1645995955785,0.3674938,2609.4,2609.0,6.2885]
[1645995956085,3.122,2609.1,2608.6,1.55971178]
[1645995956282,0.25,2609.3,2607.9,0.71998646]
[1645995956484,1.91616,2608.2,2608.0,0.463]
[1645995956733,0.25,2608.9,2608.1,7.8216]
[1645995956931,1.40603465,2609.1,2608.9,11.66]
[1645995957134,3.5,2609.0,2608.1,7.6684]
[1645995957333,3.45,2609.0,2608.2,0.463]
[1645995957533,3.45,2609.0,2608.1,7.3444]
[1645995957534,0.49559,2608.2,2608.1,7.3444]
[1645995957742,0.01220783,2608.2,2607.2,3.30462]
[1645995957936,19.18877783,2608.2,2607.3,11.461]
[1645995958135,0.25,2608.0,2607.4,0.463]
[1645995958432,0.25,2608.0,2607.4,2.8086779]
[1645995958433,9.58818,2607.9,2607.4,2.8086779]
[1645995958632,9.58818,2607.9,2607.4,5.29667201]
[1645995958633,1.91766,2607.6,2607.4,5.29667201]
[1645995958834,9.58818,2607.9,2607.5,0.463]
[1645995959034,1.05363038,2608.0,2607.8,0.95862]
[1645995959240,3.5,2607.8,2606.6,0.19832316]
[1645995959435,3.66466246,2607.8,2606.6,2.61895517]
[1645995959637,3.66466246,2607.8,2607.2,2.87607]
[1645995959638,0.25,2607.3,2607.2,2.87607]
[1645995959835,3.5,2607.8,2607.2,5.29670201]
[1645995960035,0.25,2607.6,2607.5,11.66]
[1645995960235,0.25,2607.6,2607.5,2.88363201]
[1645995960469,1.42795,2608.1,2607.8,1.91702]
[1645995960470,0.25,2607.9,2607.8,1.91702]
[1645995960670,0.25,2607.9,2607.8,2.38002]
[1645995960869,0.25,2608.2,2607.7,1.42716422]
[1645995961068,0.25,2608.2,2607.7,3.79437132]
[1645995961270,3.50089263,2609.1,2608.0,1.0]
[1645995961271,0.00089263,2609.1,2608.0,1.0]
[1645995961471,0.25,2608.6,2608.5,1.91686]
[1645995962069,0.95843,2608.7,2608.5,1.91686]
[1645995962270,3.5,2608.6,2608.5,1.91686]
[1645995963075,0.00089263,2609.1,2608.6,0.8408]
[1645995963279,0.00089263,2609.1,2609.0,0.5908]
[1645995963476,0.00089263,2609.1,2609.0,2.90891774]
[1645995963675,0.25,2610.0,2609.0,3.90891774]
[1645995963873,0.25,2610.0,2609.0,2.90891774]
[1645995964115,0.25,2610.0,2609.1,11.66]
[1645995964314,10.0,2610.1,2609.7,1.95803]
[1645995964525,10.0,2610.1,2609.7,17.06394774]
[1645995964720,3.65783,2610.1,2609.9,11.66]
[1645995964919,1.41586,2610.2,2610.0,0.463]
[1645995965118,1.41586,2610.2,2610.0,12.123]
[1645995965318,1.41586,2610.2,2610.1,1.0]
[1645995965519,1.41586,2610.2,2610.1,3.79244049]
[1645995966021,1.41586,2610.2,2610.0,1.92697732]
[1645995966219,1.41586,2610.2,2610.1,0.463]
[1645995966420,1.41586,2610.2,2610.1,2.79244049]